fUST/lending_fUST_20240122
["ID","MTS","AMOUNT","RATE_DAILY","PERIOD"]
[312513187,1705938133950,-1014.23,0.00041095,31]
[312513188,1705938133974,-702.06,0.00041095,31]
[312513189,1705938133997,-500.0,0.00041095,31]
[312513190,1705938134021,-702.06,0.00041095,31]
[312513191,1705938134045,-702.06,0.00041095,31]
[312513192,1705938134069,-702.13099755,0.00041095,31]
[312513193,1705938134093,-504.16741513,0.00041095,31]
[312513194,1705938134118,-500.0,0.00041095,31]
[312513195,1705938134142,-1997.85,0.00041095,31]
[312513196,1705938134168,-676.26,0.00041095,31]
[312513197,1705938134192,-500.0,0.00041095,31]
[312513198,1705938134221,-2019.03,0.00041095,31]
[312513199,1705938134244,-500.0,0.00041095,31]
[312513200,1705938134268,-500.0,0.00041095,31]
[312513201,1705938134293,-552.87,0.00041095,31]
[312513202,1705938134321,-236.9533294,0.00041095,31]
[312513203,1705938134344,-500.0,0.00041095,31]
[312513204,1705938134368,-500.0,0.00041095,31]
[312513205,1705938134393,-500.0,0.00041095,31]
[312513206,1705938134419,-502.23060497,0.00041095,31]
[312513207,1705938134443,-2130.57,0.00041095,31]
[312513208,1705938134467,-679.61,0.00041095,31]
[312513209,1705938134492,-500.0,0.00041095,31]
[312513210,1705938134515,-500.0,0.00041095,31]
[312513211,1705938134539,-1551.85,0.00041095,31]
[312513212,1705938134561,-500.0,0.00041095,31]
[312513213,1705938134613,-163.00278446,0.00041095,31]
[312513214,1705938134639,-768.42,0.00041095,31]
[312513215,1705938134664,-1284.49,0.00041095,31]
[312513216,1705938134689,-500.0,0.00041095,31]
[312513217,1705938134715,-533.29,0.00041095,31]
[312513218,1705938134742,-150.0,0.000412,30]
[312513219,1705938134766,-529.18,0.00041369,31]
[312513220,1705938134792,-500.0,0.00041369,31]
[312513221,1705938134816,-1114.81,0.00041369,31]
[312513222,1705938134840,-333.64652128,0.00041369,31]
[312513223,1705938134864,-500.0,0.00041369,31]
[312513224,1705938134889,-768.35,0.00041369,31]
[312513225,1705938134913,-500.0,0.00041369,31]
[312513226,1705938134937,-500.98480205,0.00041369,31]
[312513227,1705938134960,-509.63994834,0.00041369,31]
[312513228,1705938134984,-873.08,0.00041369,31]
[312513229,1705938135007,-500.0,0.00041369,31]
[312513230,1705938135032,-500.99033115,0.00041369,31]
[312513231,1705938135055,-349.44193352,0.00041369,31]
[312513232,1705938135079,-500.0,0.00041369,31]
[312513233,1705938135101,-500.0,0.00041369,31]
[312513234,1705938135124,-500.0,0.00041369,31]
[312513235,1705938135148,-500.0,0.00041369,31]
[312513236,1705938135174,-500.0,0.00041369,31]
[312513237,1705938135197,-500.0,0.00041369,31]
[312513238,1705938135224,-500.0,0.00041369,31]
[312513239,1705938135248,-500.0,0.00041369,31]
[312513240,1705938135272,-500.0,0.00041369,31]
[312513241,1705938135295,-646.55430956,0.00041369,31]
[312513242,1705938135318,-500.0,0.00041369,31]
[312513243,1705938135340,-500.0,0.00041369,31]
[312513244,1705938135363,-502.45320974,0.00041369,31]
[312513245,1705938135386,-500.0,0.00041369,31]
[312513246,1705938135410,-500.0,0.00041369,31]
[312513247,1705938135432,-503.08171592,0.00041369,31]
[312513248,1705938135456,-500.0,0.00041369,31]
[312513249,1705938135583,-500.0,0.00041369,31]
[312513250,1705938135608,-500.0,0.00041369,31]
[312513251,1705938135632,-500.0,0.00041369,31]
[312513252,1705938135657,-505.56376993,0.00041369,31]
[312513253,1705938135683,-507.7941041,0.00041369,31]
[312513254,1705938135707,-500.3761187,0.00041369,31]
[312513255,1705938135732,-741.59,0.00041369,31]
[312513256,1705938135756,-500.0,0.00041369,31]
[312513257,1705938135781,-500.0,0.00041369,31]
[312513258,1705938135805,-500.0,0.00041369,31]
[312513259,1705938135829,-500.0,0.00041369,31]
[312513260,1705938135854,-500.0,0.00041369,31]
[312513261,1705938135879,-564.89,0.00041369,31]
[312513262,1705938135904,-503.49950782,0.00041369,31]
[312513263,1705938135928,-463.29261474,0.00041369,31]
[312513264,1705938135951,-1047.38,0.00041369,31]
[312513265,1705938135974,-503.352653,0.00041369,31]
[312513266,1705938135998,-502.82862532,0.00041369,31]
[312513267,1705938136023,-500.0,0.00041369,31]
[312513268,1705938136046,-540.46243249,0.00041369,31]
[312513269,1705938136070,-500.0,0.00041369,31]
[312513270,1705938136094,-500.0,0.00041369,31]
[312513271,1705938136117,-505.46527072,0.00041369,31]
[312513272,1705938136141,-501.65636611,0.00041369,31]
[312513273,1705938136168,-500.0,0.00041369,31]
[312513274,1705938136192,-501.38953766,0.00041369,31]
[312513275,1705938136216,-571.3,0.00041369,31]
[312513276,1705938136243,-500.0,0.00041369,31]
[312513277,1705938136268,-500.0,0.00041369,31]
[312513278,1705938136293,-1774.13,0.00041369,31]
[312513279,1705938136317,-500.0,0.00041369,31]
[312513280,1705938136342,-500.0,0.00041369,31]
[312513281,1705938136365,-502.70538727,0.00041369,31]
[312513282,1705938136389,-496.31125397,0.00041369,31]
[312513283,1705938136413,-604.97,0.00041369,31]
[312513284,1705938136437,-580.35254449,0.00041369,31]
[312513285,1705938136461,-500.0,0.00041369,31]
[312513286,1705938136485,-500.0,0.00041369,31]
[312513287,1705938136509,-500.0,0.00041369,31]
[312513288,1705938136534,-500.0,0.00041369,31]
[312513289,1705938136559,-561.82349144,0.00041369,31]
[312513290,1705938136582,-500.0,0.00041369,31]
[312513291,1705938136606,-500.0,0.00041369,31]
[312513292,1705938136631,-500.0,0.00041369,31]
[312513293,1705938136654,-253.83244661,0.00041369,31]
[312513294,1705938136679,-500.0,0.00041369,31]
[312513295,1705938136703,-500.0,0.00041369,31]
[312513296,1705938136727,-500.0,0.00041369,31]
[312513297,1705938136750,-500.0,0.00041369,31]
[312513298,1705938136775,-500.0,0.00041369,31]
[312513299,1705938136798,-500.0,0.00041369,31]
[312513300,1705938136822,-500.0,0.00041369,31]
[312513301,1705938136845,-500.0,0.00041369,31]
[312513302,1705938136869,-500.0,0.00041369,31]
[312513303,1705938136892,-500.0,0.00041369,31]
[312513304,1705938136916,-500.0,0.00041369,31]
[312513305,1705938136939,-501.28879918,0.00041369,31]
[312513306,1705938136962,-500.0,0.00041369,31]
[312513307,1705938136985,-500.0,0.00041369,31]
[312513308,1705938137009,-500.0,0.00041369,31]
[312513309,1705938137034,-500.0,0.00041369,31]
[312513310,1705938137057,-640.07,0.00041369,31]
[312513311,1705938137079,-500.0,0.00041369,31]
[312513312,1705938137102,-1825.15,0.00041369,31]
[312513313,1705938137125,-500.0,0.00041369,31]
[312513314,1705938137148,-150.0,0.00041369,31]
[312513315,1705938137173,-1380.22,0.00041369,31]
[312513316,1705938137197,-500.0,0.00041369,31]
[312513317,1705938137227,-567.11,0.00041369,31]
[312513318,1705938137253,-500.0,0.00041369,31]
[312513319,1705938137278,-500.0,0.00041369,31]
[312513320,1705938137301,-500.0,0.00041369,31]
[312513321,1705938137325,-1337.29,0.00041369,31]
[312513322,1705938137348,-505.84278509,0.00041369,31]
[312513323,1705938137372,-500.0,0.00041369,31]
[312513324,1705938137396,-345.28999523,0.00041369,31]
[312513325,1705938137423,-1443.88,0.00041369,31]
[312513326,1705938137447,-500.0,0.00041369,31]
[312513327,1705938137472,-502.83340354,0.00041369,31]
[312513328,1705938137496,-587.35290045,0.00041369,31]
[312513329,1705938137521,-1289.28,0.00041369,31]
[312513330,1705938137545,-500.0,0.00041369,31]
[312513331,1705938137570,-638.47,0.00041369,31]
[312513332,1705938137594,-500.0,0.00041369,31]
[312513333,1705938137619,-500.0,0.00041369,31]
[312513334,1705938137645,-500.0,0.00041369,31]
[312513335,1705938137672,-1732.72,0.00041369,31]
[312513336,1705938137699,-500.0,0.00041369,31]
[312513337,1705938137726,-829.19,0.00041369,31]
[312513338,1705938137751,-503.72810246,0.00041369,31]
[312513339,1705938137775,-500.0,0.00041369,31]
[312513340,1705938137800,-2040.77,0.00041369,31]
[312513341,1705938137825,-500.0,0.00041369,31]
[312513342,1705938137850,-500.0,0.00041369,31]
[312513343,1705938137875,-500.0,0.00041369,31]
[312513344,1705938137900,-2018.02,0.00041369,31]
[312513345,1705938137926,-1114.79,0.00041369,31]
[312513346,1705938137951,-500.0,0.00041369,31]
[312513347,1705938137976,-1126.09,0.00041369,31]
[312513348,1705938138000,-629.83167413,0.00041369,31]
[312513349,1705938138024,-500.0,0.00041369,31]
[312513350,1705938138048,-500.0,0.00041369,31]
[312513351,1705938138072,-1962.09,0.00041369,31]
[312513352,1705938138096,-949.36,0.00041369,31]
[312513353,1705938138263,-500.0,0.00041369,31]
[312513354,1705938138292,-500.0,0.00041369,31]
[312513355,1705938138317,-2181.3,0.00041369,31]
[312513356,1705938138341,-1014.23,0.00041369,31]
[312513357,1705938138367,-559.0919186,0.00041369,31]
[312513358,1705938138391,-508.20453236,0.00041369,31]
[312513359,1705938138415,-1997.85,0.00041369,31]
[312513360,1705938138439,-676.26,0.00041369,31]
[312513361,1705938138463,-500.0,0.00041369,31]
[312513362,1705938138487,-2019.03,0.00041369,31]
[312513363,1705938138511,-500.0,0.00041369,31]
[312513364,1705938138534,-500.0,0.00041369,31]
[312513365,1705938138558,-552.87,0.00041369,31]
[312513366,1705938138581,-500.0,0.00041369,31]
[312513367,1705938138605,-500.0,0.00041369,31]
[312513368,1705938138629,-500.0,0.00041369,31]
[312513369,1705938138653,-2130.57,0.00041369,31]
[312513370,1705938138678,-679.61,0.00041369,31]
[312513371,1705938138701,-506.86222648,0.00041369,31]
[312513372,1705938138726,-503.47213639,0.00041369,31]
[312513373,1705938138750,-1551.85,0.00041369,31]
[312513374,1705938138774,-500.0,0.00041369,31]
[312513375,1705938138798,-768.42,0.00041369,31]
[312513376,1705938138822,-1284.49,0.00041369,31]
[312513377,1705938138845,-500.0,0.00041369,31]
[312513378,1705938138870,-533.29,0.00041369,31]
[312513379,1705938138895,-150.0,0.000414,30]
[312513380,1705938138920,-348.140272,0.00041553,120]
[312513381,1705938138943,-150.0,0.000416,30]
[312513382,1705938138967,-529.18,0.00041643,31]
[312513383,1705938138990,-500.0,0.00041643,31]
[312513384,1705938139014,-1114.81,0.00041643,31]
[312513385,1705938139038,-500.0,0.00041643,31]
[312513386,1705938139063,-768.35,0.00041643,31]
[312513387,1705938139086,-504.48297448,0.00041643,31]
[312513388,1705938139111,-873.08,0.00041643,31]
[312513389,1705938139134,-500.0,0.00041643,31]
[312513390,1705938139159,-500.0,0.00041643,31]
[312513391,1705938139182,-500.0,0.00041643,31]
[312513392,1705938139206,-500.0,0.00041643,31]
[312513393,1705938139232,-500.0,0.00041643,31]
[312513394,1705938139256,-500.0,0.00041643,31]
[312513395,1705938139281,-500.0,0.00041643,31]
[312513396,1705938139306,-500.0,0.00041643,31]
[312513397,1705938139330,-503.77833303,0.00041643,31]
[312513398,1705938139352,-500.0,0.00041643,31]
[312513399,1705938139376,-500.0,0.00041643,31]
[312513400,1705938139400,-500.0,0.00041643,31]
[312513401,1705938139426,-503.59959606,0.00041643,31]
[312513402,1705938139450,-500.0,0.00041643,31]
[312513403,1705938139474,-500.0,0.00041643,31]
[312513404,1705938139498,-502.40035702,0.00041643,31]
[312513405,1705938139522,-741.59,0.00041643,31]
[312513406,1705938139545,-500.0,0.00041643,31]
[312513407,1705938139568,-500.0,0.00041643,31]
[312513408,1705938139591,-500.0,0.00041643,31]
[312513409,1705938139614,-500.0,0.00041643,31]
[312513410,1705938139638,-500.0,0.00041643,31]
[312513411,1705938139664,-564.89,0.00041643,31]
[312513412,1705938139687,-1047.38,0.00041643,31]
[312513413,1705938139711,-500.0,0.00041643,31]
[312513414,1705938139734,-500.0,0.00041643,31]
[312513415,1705938139757,-500.0,0.00041643,31]
[312513416,1705938139780,-500.0,0.00041643,31]
[312513417,1705938139803,-571.3,0.00041643,31]
[312513418,1705938139826,-500.0,0.00041643,31]
[312513419,1705938139851,-500.0,0.00041643,31]
[312513420,1705938139874,-1774.13,0.00041643,31]
[312513421,1705938139899,-500.0,0.00041643,31]
[312513422,1705938139924,-500.0,0.00041643,31]
[312513423,1705938139949,-604.97,0.00041643,31]
[312513424,1705938139974,-505.01044633,0.00041643,31]
[312513425,1705938139997,-500.0,0.00041643,31]
[312513426,1705938140022,-500.0,0.00041643,31]
[312513427,1705938140046,-502.80042383,0.00041643,31]
[312513428,1705938140070,-500.0,0.00041643,31]
[312513429,1705938140093,-500.0,0.00041643,31]
[312513430,1705938140117,-500.0,0.00041643,31]
[312513431,1705938140141,-33.96080007,0.00041643,31]
[312513432,1705938147966,-466.03919993,0.00041643,31]
[312513433,1705938147991,-500.0,0.00041643,31]
[312513434,1705938148015,-500.0,0.00041643,31]
[312513435,1705938148038,-538.96720159,0.00041643,31]
[312513436,1705938148061,-500.0,0.00041643,31]
[312513437,1705938148085,-500.0,0.00041643,31]
[312513438,1705938148109,-500.0,0.00041643,31]
[312513439,1705938148133,-174.10869606,0.00041643,31]
[312513440,1705938148160,-500.0,0.00041643,31]
[312513441,1705938148187,-500.0,0.00041643,31]
[312513442,1705938148212,-500.0,0.00041643,31]
[312513443,1705938148238,-197.88479101,0.00041643,31]
[312513444,1705938148262,-500.0,0.00041643,31]
[312513445,1705938148286,-500.0,0.00041643,31]
[312513446,1705938148311,-500.0,0.00041643,31]
[312513447,1705938148335,-640.07,0.00041643,31]
[312513448,1705938148358,-500.0,0.00041643,31]
[312513449,1705938148382,-1825.15,0.00041643,31]
[312513450,1705938148409,-500.0,0.00041643,31]
[312513451,1705938148434,-150.0,0.00041643,31]
[312513452,1705938148458,-1380.22,0.00041643,31]
[312513453,1705938148481,-500.0,0.00041643,31]
[312513454,1705938148505,-567.11,0.00041643,31]
[312513455,1705938148529,-500.0,0.00041643,31]
[312513456,1705938148553,-500.0,0.00041643,31]
[312513457,1705938148576,-500.0,0.00041643,31]
[312513458,1705938148600,-1337.29,0.00041643,31]
[312513459,1705938148624,-1443.88,0.00041643,31]
[312513460,1705938148649,-500.0,0.00041643,31]
[312513461,1705938148675,-1289.28,0.00041643,31]
[312513462,1705938148699,-500.0,0.00041643,31]
[312513463,1705938148723,-638.47,0.00041643,31]
[312513464,1705938148748,-316.13435171,0.00041643,31]
[312513465,1705938148773,-500.0,0.00041643,31]
[312513466,1705938148798,-500.0,0.00041643,31]
[312513467,1705938148823,-1732.72,0.00041643,31]
[312513468,1705938148847,-500.0,0.00041643,31]
[312513469,1705938148872,-829.19,0.00041643,31]
[312513470,1705938148897,-500.0,0.00041643,31]
[312513471,1705938148923,-2040.77,0.00041643,31]
[312513472,1705938148946,-507.93073559,0.00041643,31]
[312513473,1705938148971,-508.87785453,0.00041643,31]
[312513474,1705938148995,-500.0,0.00041643,31]
[312513475,1705938149021,-2018.02,0.00041643,31]
[312513476,1705938149045,-1114.79,0.00041643,31]
[312513477,1705938149071,-500.0,0.00041643,31]
[312513478,1705938149096,-1126.09,0.00041643,31]
[312513479,1705938149121,-500.0,0.00041643,31]
[312513480,1705938149147,-500.0,0.00041643,31]
[312513481,1705938149171,-1962.09,0.00041643,31]
[312513482,1705938149196,-949.36,0.00041643,31]
[312513483,1705938149221,-500.0,0.00041643,31]
[312513484,1705938149247,-502.96989885,0.00041643,31]
[312513485,1705938149273,-2181.3,0.00041643,31]
[312513486,1705938149300,-1014.23,0.00041643,31]
[312513487,1705938149325,-1997.85,0.00041643,31]
[312513488,1705938149351,-676.26,0.00041643,31]
[312513489,1705938149376,-500.0,0.00041643,31]
[312513490,1705938149402,-2019.03,0.00041643,31]
[312513491,1705938149428,-279.37113648,0.00041643,31]
[312513492,1705938149454,-500.0,0.00041643,31]
[312513493,1705938149479,-552.87,0.00041643,31]
[312513494,1705938149504,-502.94162345,0.00041643,31]
[312513495,1705938149528,-500.0,0.00041643,31]
[312513496,1705938149553,-500.0,0.00041643,31]
[312513497,1705938149578,-2130.57,0.00041643,31]
[312513498,1705938149602,-679.61,0.00041643,31]
[312513499,1705938149628,-1551.85,0.00041643,31]
[312513500,1705938149654,-500.0,0.00041643,31]
[312513501,1705938149681,-768.42,0.00041643,31]
[312513502,1705938149706,-1284.49,0.00041643,31]
[312513503,1705938149732,-167.40155184,0.00041643,31]
[312513504,1705938149757,-533.29,0.00041643,31]
[312513505,1705938149781,-1520.0,0.00041644,30]
[312513506,1705938149806,-150.0,0.000418,30]
[312513507,1705938149831,-529.18,0.00041917,31]
[312513508,1705938149856,-360.23287245,0.00041917,31]
[312513509,1705938149881,-1114.81,0.00041917,31]
[312513510,1705938149906,-507.10110841,0.00041917,31]
[312513511,1705938149933,-768.35,0.00041917,31]
[312513512,1705938149956,-873.08,0.00041917,31]
[312513513,1705938149981,-500.0,0.00041917,31]
[312513514,1705938150005,-500.0,0.00041917,31]
[312513515,1705938150029,-500.0,0.00041917,31]
[312513516,1705938150172,-642.58675107,0.00041917,31]
[312513517,1705938150197,-500.0,0.00041917,31]
[312513518,1705938150222,-500.0,0.00041917,31]
[312513519,1705938150249,-500.0,0.00041917,31]
[312513520,1705938150273,-500.0,0.00041917,31]
[312513521,1705938150297,-500.0,0.00041917,31]
[312513522,1705938150322,-500.0,0.00041917,31]
[312513523,1705938150346,-307.87157373,0.00041917,31]
[312513524,1705938150370,-500.0,0.00041917,31]
[312513525,1705938150394,-741.59,0.00041917,31]
[312513526,1705938150420,-568.39787445,0.00041917,31]
[312513527,1705938150444,-384.15245971,0.00041917,31]
[312513528,1705938150468,-500.0,0.00041917,31]
[312513529,1705938150492,-502.05103506,0.00041917,31]
[312513530,1705938150517,-510.11131015,0.00041917,31]
[312513531,1705938150542,-564.89,0.00041917,31]
[312513532,1705938150567,-1047.38,0.00041917,31]
[312513533,1705938150591,-500.0,0.00041917,31]
[312513534,1705938150614,-505.37016469,0.00041917,31]
[312513535,1705938150640,-500.0,0.00041917,31]
[312513536,1705938150667,-245.24430088,0.00041917,31]
[312513537,1705938150692,-571.3,0.00041917,31]
[312513538,1705938150718,-500.0,0.00041917,31]
[312513539,1705938150744,-500.0,0.00041917,31]
[312513540,1705938150769,-279.48639114,0.00041917,31]
[312513541,1705938150795,-1774.13,0.00041917,31]
[312513542,1705938150822,-500.0,0.00041917,31]
[312513543,1705938150848,-604.97,0.00041917,31]
[312513544,1705938150876,-327.03516482,0.00041917,31]
[312513545,1705938150902,-500.0,0.00041917,31]
[312513546,1705938150930,-500.0,0.00041917,31]
[312513547,1705938150954,-274.80046039,0.00041917,31]
[312513548,1705938150977,-500.0,0.00041917,31]
[312513549,1705938151002,-500.0,0.00041917,31]
[312513550,1705938151027,-500.0,0.00041917,31]
[312513551,1705938151051,-500.0,0.00041917,31]
[312513552,1705938151075,-500.0,0.00041917,31]
[312513553,1705938151099,-500.0,0.00041917,31]
[312513554,1705938151123,-513.91532178,0.00041917,31]
[312513555,1705938151146,-500.0,0.00041917,31]
[312513556,1705938151173,-517.27188851,0.00041917,31]
[312513557,1705938151197,-500.0,0.00041917,31]
[312513558,1705938151221,-394.92678634,0.00041917,31]
[312513559,1705938151247,-500.0,0.00041917,31]
[312513560,1705938151271,-500.0,0.00041917,31]
[312513561,1705938151296,-640.07,0.00041917,31]
[312513562,1705938151321,-500.0,0.00041917,31]
[312513563,1705938151346,-1825.15,0.00041917,31]
[312513564,1705938151372,-500.0,0.00041917,31]
[312513565,1705938151396,-150.0,0.00041917,31]
[312513566,1705938151424,-1380.22,0.00041917,31]
[312513567,1705938151449,-500.0,0.00041917,31]
[312513568,1705938151473,-567.11,0.00041917,31]
[312513569,1705938151497,-436.8816916,0.00041917,31]
[312513570,1705938151521,-500.0,0.00041917,31]
[312513571,1705938151545,-317.68036632,0.00041917,31]
[312513572,1705938151570,-1337.29,0.00041917,31]
[312513573,1705938151594,-1443.88,0.00041917,31]
[312513574,1705938151620,-500.0,0.00041917,31]
[312513575,1705938151646,-1289.28,0.00041917,31]
[312513576,1705938151673,-172.49121502,0.00041917,31]
[312513577,1705938151698,-638.47,0.00041917,31]
[312513578,1705938151723,-500.0,0.00041917,31]
[312513579,1705938151748,-507.74708946,0.00041917,31]
[312513580,1705938151774,-1732.72,0.00041917,31]
[312513581,1705938151799,-500.0,0.00041917,31]
[312513582,1705938151824,-829.19,0.00041917,31]
[312513583,1705938151849,-518.60892669,0.00041917,31]
[312513584,1705938151874,-2040.77,0.00041917,31]
[312513585,1705938151899,-500.0,0.00041917,31]
[312513586,1705938151924,-2018.02,0.00041917,31]
[312513587,1705938151948,-1114.79,0.00041917,31]
[312513588,1705938151973,-500.0,0.00041917,31]
[312513589,1705938151998,-1126.09,0.00041917,31]
[312513590,1705938152023,-500.0,0.00041917,31]
[312513591,1705938152048,-515.12410877,0.00041917,31]
[312513592,1705938152073,-1962.09,0.00041917,31]
[312513593,1705938152098,-949.36,0.00041917,31]
[312513594,1705938152123,-500.0,0.00041917,31]
[312513595,1705938152148,-2181.3,0.00041917,31]
[312513596,1705938152175,-1014.23,0.00041917,31]
[312513597,1705938152200,-1997.85,0.00041917,31]
[312513598,1705938152234,-676.26,0.00041917,31]
[312513599,1705938152260,-500.0,0.00041917,31]
[312513600,1705938152286,-2019.03,0.00041917,31]
[312513601,1705938152312,-500.0,0.00041917,31]
[312513602,1705938152337,-552.87,0.00041917,31]
[312513603,1705938152362,-500.0,0.00041917,31]
[312513604,1705938152387,-500.0,0.00041917,31]
[312513605,1705938152411,-2130.57,0.00041917,31]
[312513606,1705938152441,-679.61,0.00041917,31]
[312513607,1705938152465,-1551.85,0.00041917,31]
[312513608,1705938152491,-501.53297085,0.00041917,31]
[312513609,1705938152515,-768.42,0.00041917,31]
[312513610,1705938152541,-1284.49,0.00041917,31]
[312513611,1705938152682,-533.29,0.00041917,31]
[312513612,1705938152713,-150.0,0.00042,30]
[312513613,1705938152742,-1000.0,0.00042,42]
[312513614,1705938152767,-11946.96769166,0.00042,120]
[312513615,1705938152793,-600.0,0.00042028,30]
[312513616,1705938152817,-433.02507713,0.00042095,30]
[312513617,1705938152843,-500.0,0.00042095,30]
[312513618,1705938152867,-608.05434403,0.00042095,30]
[312513619,1705938152890,-500.0,0.00042095,30]
[312513620,1705938152917,-500.0,0.00042095,30]
[312513621,1705938152942,-500.0,0.00042095,30]
[312513622,1705938152967,-500.0,0.00042095,30]
[312513623,1705938152992,-500.0,0.00042095,30]
[312513624,1705938153017,-195.28809103,0.00042095,30]
[312513625,1705938153041,-500.0,0.00042095,30]
[312513626,1705938153066,-500.0,0.00042095,30]
[312513627,1705938153091,-359.91341843,0.00042095,30]
[312513628,1705938153115,-500.0,0.00042095,30]
[312513629,1705938153139,-500.0,0.00042095,30]
[312513630,1705938153167,-500.0,0.00042095,30]
[312513631,1705938153191,-500.0,0.00042095,30]
[312513632,1705938153216,-643.47610609,0.00042095,30]
[312513633,1705938153241,-162.9938306,0.00042095,30]
[312513634,1705938153264,-500.0,0.00042095,30]
[312513635,1705938153288,-500.0,0.00042095,30]
[312513636,1705938153313,-500.0,0.00042095,30]
[312513637,1705938153337,-500.0,0.00042095,30]
[312513638,1705938153362,-506.05027211,0.00042095,30]
[312513639,1705938153386,-454.57941091,0.00042095,30]
[312513640,1705938153412,-500.0,0.00042095,30]
[312513641,1705938153438,-500.0,0.00042095,30]
[312513642,1705938153464,-679.98233231,0.00042095,30]
[312513643,1705938153487,-500.0,0.00042095,30]
[312513644,1705938153513,-679.98233231,0.00042095,30]
[312513645,1705938153537,-766.21580978,0.00042095,30]
[312513646,1705938153563,-679.98233231,0.00042095,30]
[312513647,1705938153587,-766.21580978,0.00042095,30]
[312513648,1705938153611,-766.21580978,0.00042095,30]
[312513649,1705938153638,-766.21580978,0.00042095,30]
[312513650,1705938153666,-679.98233231,0.00042095,30]
[312513651,1705938153693,-766.21580978,0.00042095,30]
[312513652,1705938153721,-679.98233231,0.00042095,30]
[312513653,1705938153748,-766.21580978,0.00042095,30]
[312513654,1705938153777,-679.98233231,0.00042095,30]
[312513655,1705938153805,-766.21580978,0.00042095,30]
[312513656,1705938153834,-679.98233231,0.00042095,30]
[312513657,1705938153862,-766.21580978,0.00042095,30]
[312513658,1705938153889,-679.98233231,0.00042095,30]
[312513659,1705938153919,-766.21580978,0.00042095,30]
[312513660,1705938153947,-679.98233231,0.00042095,30]
[312513661,1705938153973,-766.21580978,0.00042095,30]
[312513662,1705938154001,-679.98233231,0.00042095,30]
[312513663,1705938154027,-766.21580978,0.00042095,30]
[312513664,1705938154053,-679.98233231,0.00042095,30]
[312513665,1705938154078,-766.21580978,0.00042095,30]
[312513666,1705938154103,-679.98233231,0.00042095,30]
[312513667,1705938154129,-679.98233231,0.00042095,30]
[312513668,1705938154155,-679.98233231,0.00042095,30]
[312513669,1705938154187,-679.98233231,0.00042095,30]
[312513670,1705938154214,-679.98233231,0.00042095,30]
[312513671,1705938154240,-780.42543684,0.00042095,30]
[312513672,1705938154266,-780.42543684,0.00042095,30]
[312513673,1705938154293,-1349.52849079,0.00042095,30]
[312513674,1705938154319,-780.42543684,0.00042095,30]
[312513675,1705938154346,-780.42543684,0.00042095,30]
[312513676,1705938154372,-500.0,0.00042095,30]
[312513677,1705938154398,-500.0,0.00042095,30]
[312513678,1705938154423,-324.55563335,0.00042095,30]
[312513679,1705938154449,-290.85875383,0.00042095,30]
[312513680,1705938154474,-175.33625285,0.00042095,30]
[312513681,1705938154498,-500.0,0.00042095,30]
[312513682,1705938154523,-500.0,0.00042095,30]
[312513683,1705938154548,-500.0,0.00042095,30]
[312513684,1705938154575,-500.0,0.00042095,30]
[312513685,1705938154599,-500.0,0.00042095,30]
[312513686,1705938154624,-500.0,0.00042095,30]